[Event "SELL Games"]
[Site "Tartu, Estonia"]
[Date "2023.05.19"]
[Round "4.1"]
[White "Laurusas, Tomas"]
[Black "Vardanyan, Aras"]
[Result "0-1"]
[TimeControl "15min + 10sec per move each"]
[WhiteTitle "GM"]
[BlackTitle "FM"]
[WhiteFideId "12803731"]
[BlackFideId "12808792"]
[WhiteElo "2504"]
[BlackElo "2255"]

1. d4 {[%clk 00:15:19]} {[%emt 00:45:54]} Nf6 {[%clk 00:15:18]} {[%emt
00:00:02]} 2. c4 {[%clk 00:15:28]} {[%emt 00:00:01]} e6 {[%clk 00:15:27]}
{[%emt 00:00:01]} 3. Nf3 {[%clk 00:15:32]} {[%emt 00:00:04]} d5 {[%clk
00:15:36]} {[%emt 00:00:02]} 4. Nc3 {[%clk 00:15:39]} {[%emt 00:00:03]} a6
{[%clk 00:15:45]} {[%emt 00:00:01]} 5. cxd5 {[%clk 00:15:38]} {[%emt 00:00:11]}
exd5 {[%clk 00:15:54]} {[%emt 00:00:01]} 6. Bg5 {[%clk 00:15:26]} {[%emt
00:00:22]} Be6 {[%clk 00:16:03]} {[%emt 00:00:02]} 7. e3 {[%clk 00:15:31]}
{[%emt 00:00:04]} Nbd7 {[%clk 00:16:11]} {[%emt 00:00:01]} 8. h3 {[%clk
00:15:16]} {[%emt 00:00:26]} Bd6 {[%clk 00:15:30]} {[%emt 00:00:51]} 9. Bd3
{[%clk 00:15:19]} {[%emt 00:00:06]} Qb8 {[%clk 00:15:30]} {[%emt 00:00:11]} 10.
Qd2 {[%clk 00:15:01]} {[%emt 00:00:28]} c6 {[%clk 00:15:14]} {[%emt 00:00:26]}
11. Bf4 {[%clk 00:14:33]} {[%emt 00:00:38]} O-O {[%clk 00:15:11]} {[%emt
00:00:12]} 12. O-O {[%clk 00:14:40]} {[%emt 00:00:02]} Re8 {[%clk 00:14:47]}
{[%emt 00:00:35]} 13. Rfe1 {[%clk 00:14:36]} {[%emt 00:00:13]} a5 {[%clk
00:14:49]} {[%emt 00:00:09]} 14. Rac1 {[%clk 00:14:39]} {[%emt 00:00:06]} Nh5
{[%clk 00:14:30]} {[%emt 00:00:29]} 15. Bxd6 {[%clk 00:13:59]} {[%emt
00:00:50]} Qxd6 {[%clk 00:14:38]} {[%emt 00:00:03]} 16. Qc2 {[%clk 00:13:27]}
{[%emt 00:00:41]} Nhf6 {[%clk 00:14:30]} {[%emt 00:00:19]} 17. Ne2 {[%clk
00:13:33]} {[%emt 00:00:04]} Ne4 {[%clk 00:14:17]} {[%emt 00:00:23]} 18. Bxe4
{[%clk 00:13:03]} {[%emt 00:00:39]} dxe4 {[%clk 00:14:25]} {[%emt 00:00:02]} 19.
Qxe4 {[%clk 00:13:12]} {[%emt 00:00:01]} Bxa2 {[%clk 00:14:00]} {[%emt
00:00:35]} 20. Qc2 {[%clk 00:13:00]} {[%emt 00:00:21]} Bd5 {[%clk 00:14:02]}
{[%emt 00:00:08]} 21. Nd2 {[%clk 00:12:57]} {[%emt 00:00:13]} Nf6 {[%clk
00:12:50]} {[%emt 00:01:23]} 22. Ng3 {[%clk 00:12:53]} {[%emt 00:00:13]} Qb4
{[%clk 00:12:13]} {[%emt 00:00:47]} 23. e4 {[%clk 00:12:52]} {[%emt 00:00:11]}
Be6 {[%clk 00:12:21]} {[%emt 00:00:03]} 24. Nf3 {[%clk 00:13:00]} {[%emt
00:00:01]} a4 {[%clk 00:12:20]} {[%emt 00:00:11]} 25. Re3 {[%clk 00:12:55]}
{[%emt 00:00:13]} Red8 {[%clk 00:11:49]} {[%emt 00:00:42]} 26. Qb1 {[%clk
00:11:25]} {[%emt 00:01:40]} h6 {[%clk 00:11:53]} {[%emt 00:00:06]} 27. Rec3
{[%clk 00:10:24]} {[%emt 00:01:11]} Ra6 {[%clk 00:11:40]} {[%emt 00:00:23]} 28.
Qa1 {[%clk 00:09:56]} {[%emt 00:00:38]} Rb6 {[%clk 00:11:17]} {[%emt 00:00:33]}
29. R1c2 {[%clk 00:09:57]} {[%emt 00:00:09]} Rb5 {[%clk 00:10:49]} {[%emt
00:00:40]} 30. Qc1 {[%clk 00:09:55]} {[%emt 00:00:11]} Qe7 {[%clk 00:10:16]}
{[%emt 00:00:43]} 31. Re2 {[%clk 00:09:39]} {[%emt 00:00:25]} Nh5 {[%clk
00:09:41]} {[%emt 00:00:45]} 32. Nxh5 {[%clk 00:06:57]} {[%emt 00:02:52]} Rxh5
{[%clk 00:09:49]} {[%emt 00:00:02]} 33. Qe3 {[%clk 00:05:33]} {[%emt 00:01:33]}
Rb5 {[%clk 00:09:52]} {[%emt 00:00:07]} 34. Rd2 {[%clk 00:05:37]} {[%emt
00:00:06]} Qf6 {[%clk 00:09:18]} {[%emt 00:00:44]} 35. Ne5 {[%clk 00:05:14]}
{[%emt 00:00:33]} c5 {[%clk 00:07:23]} {[%emt 00:02:06]} 36. Nf3 {[%clk
00:05:23]} cxd4 {[%clk 00:07:19]} {[%emt 00:00:14]} 37. Nxd4 {[%clk 00:05:31]}
{[%emt 00:00:01]} Rb4 {[%clk 00:06:11]} {[%emt 00:01:18]} 38. e5 {[%clk
00:04:31]} {[%emt 00:01:10]} Qe7 {[%clk 00:05:38]} {[%emt 00:00:43]} 39. f4
{[%clk 00:03:38]} {[%emt 00:01:03]} Qd7 {[%clk 00:03:12]} {[%emt 00:02:35]} 40.
Rcc2 {[%clk 00:03:47]} {[%emt 00:00:02]} Rxd4 {[%clk 00:03:06]} {[%emt
00:00:16]} 0-1

[Event "SELL Games"]
[Site "Tartu, Estonia"]
[Date "2023.05.19"]
[Round "4.2"]
[White "Vanagas, Tadas"]
[Black "Stauskas, Lukas"]
[Result "0-1"]
[TimeControl "15min + 10sec per move each"]
[WhiteFideId "12805467"]
[BlackFideId "12808148"]
[WhiteElo "2225"]
[BlackElo "2296"]

1. e4 {[%clk 00:15:19]} {[%emt 01:11:50]} c5 {[%clk 00:15:18]} {[%emt
00:00:02]} 2. Nf3 {[%clk 00:15:28]} e6 {[%clk 00:15:26]} {[%emt 00:00:02]} 3.
d4 {[%clk 00:15:37]} cxd4 {[%clk 00:15:35]} {[%emt 00:00:02]} 4. Nxd4 {[%clk
00:15:46]} Nc6 {[%clk 00:15:43]} 5. Nc3 {[%clk 00:15:52]} {[%emt 00:00:05]} Qc7
{[%clk 00:15:51]} {[%emt 00:00:02]} 6. Be3 {[%clk 00:15:59]} {[%emt 00:00:02]}
a6 {[%clk 00:16:00]} {[%emt 00:00:02]} 7. a3 {[%clk 00:15:56]} {[%emt
00:00:14]} Nf6 {[%clk 00:15:59]} {[%emt 00:00:11]} 8. f3 {[%clk 00:15:55]}
{[%emt 00:00:11]} Be7 {[%clk 00:15:53]} {[%emt 00:00:16]} 9. Qd2 {[%clk
00:15:54]} {[%emt 00:00:10]} b5 {[%clk 00:15:49]} {[%emt 00:00:14]} 10. Nxc6
{[%clk 00:14:37]} {[%emt 00:01:28]} dxc6 {[%clk 00:15:41]} {[%emt 00:00:17]} 11.
a4 {[%clk 00:14:46]} {[%emt 00:00:01]} Rb8 {[%clk 00:15:13]} {[%emt 00:00:38]}
12. Bd3 {[%clk 00:14:27]} {[%emt 00:00:29]} e5 {[%clk 00:15:11]} {[%emt
00:00:12]} 13. O-O {[%clk 00:14:22]} {[%emt 00:00:15]} O-O {[%clk 00:15:11]}
{[%emt 00:00:10]} 14. Qf2 {[%clk 00:13:46]} {[%emt 00:00:46]} Be6 {[%clk
00:13:49]} {[%emt 00:01:32]} 15. axb5 {[%clk 00:11:00]} {[%emt 00:02:57]} axb5
{[%clk 00:13:58]} {[%emt 00:00:01]} 16. Ra7 {[%clk 00:11:08]} Rb7 {[%clk
00:14:06]} {[%emt 00:00:02]} 17. Rfa1 {[%clk 00:11:18]} Nd7 {[%clk 00:14:05]}
{[%emt 00:00:11]} 18. Rxb7 {[%clk 00:10:31]} {[%emt 00:00:57]} Qxb7 {[%clk
00:14:13]} {[%emt 00:00:01]} 19. Ra7 {[%clk 00:10:41]} {[%emt 00:00:01]} Qb8
{[%clk 00:14:17]} {[%emt 00:00:05]} 20. b3 {[%clk 00:10:25]} {[%emt 00:00:26]}
Rd8 {[%clk 00:14:03]} {[%emt 00:00:23]} 21. g3 {[%clk 00:09:15]} {[%emt
00:01:21]} Bb4 {[%clk 00:12:47]} {[%emt 00:01:26]} 22. Nd1 {[%clk 00:08:31]}
{[%emt 00:00:55]} c5 {[%clk 00:11:53]} {[%emt 00:01:04]} 23. Ra1 {[%clk
00:08:37]} {[%emt 00:00:04]} c4 {[%clk 00:12:01]} {[%emt 00:00:02]} 24. bxc4
{[%clk 00:08:39]} {[%emt 00:00:09]} bxc4 {[%clk 00:12:09]} 25. Be2 {[%clk
00:08:47]} {[%emt 00:00:02]} Bf8 {[%clk 00:11:45]} {[%emt 00:00:34]} 26. Qe1
{[%clk 00:08:12]} {[%emt 00:00:45]} Bb4 {[%clk 00:09:59]} {[%emt 00:01:56]} 27.
Qf1 {[%clk 00:07:39]} {[%emt 00:00:43]} Qc7 {[%clk 00:09:35]} {[%emt 00:00:34]}
28. Ra4 {[%clk 00:07:04]} {[%emt 00:00:45]} Rb8 {[%clk 00:09:13]} {[%emt
00:00:32]} 29. Kg2 {[%clk 00:04:42]} {[%emt 00:02:32]} Qc6 {[%clk 00:08:43]}
{[%emt 00:00:40]} 30. Ra1 {[%clk 00:04:44]} {[%emt 00:00:08]} h6 {[%clk
00:08:05]} {[%emt 00:00:48]} 31. h4 {[%clk 00:02:50]} {[%emt 00:02:04]} Bf8
{[%clk 00:06:52]} {[%emt 00:01:23]} 32. Qe1 {[%clk 00:02:38]} {[%emt 00:00:23]}
Bb4 {[%clk 00:06:21]} {[%emt 00:00:40]} 33. Qf1 {[%clk 00:02:47]} h5 {[%clk
00:05:28]} {[%emt 00:01:03]} 34. Nf2 {[%clk 00:02:32]} {[%emt 00:00:25]} Bc3
{[%clk 00:04:54]} {[%emt 00:00:43]} 35. Rb1 {[%clk 00:02:41]} {[%emt 00:00:01]}
Ra8 {[%clk 00:04:32]} {[%emt 00:00:32]} 36. Nd1 {[%clk 00:02:41]} {[%emt
00:00:10]} Bd4 {[%clk 00:04:26]} {[%emt 00:00:16]} 37. Qf2 {[%clk 00:02:05]}
{[%emt 00:00:46]} Qc5 {[%clk 00:03:49]} {[%emt 00:00:48]} 38. f4 {[%clk
00:02:14]} Nf6 {[%clk 00:03:14]} {[%emt 00:00:45]} 39. fxe5 {[%clk 00:01:20]}
{[%emt 00:01:05]} Bxe3 {[%clk 00:03:19]} {[%emt 00:00:04]} 40. Qxe3 {[%clk
00:01:27]} {[%emt 00:00:03]} Qxe5 {[%clk 00:03:26]} {[%emt 00:00:03]} 41. Nf2
{[%clk 00:01:33]} {[%emt 00:00:04]} Ra2 {[%clk 00:03:22]} {[%emt 00:00:14]} 42.
Rc1 {[%clk 00:00:58]} {[%emt 00:00:45]} g6 {[%clk 00:02:08]} {[%emt 00:01:24]}
43. Bf3 {[%clk 00:00:43]} {[%emt 00:00:25]} Kg7 {[%clk 00:01:54]} {[%emt
00:00:24]} 44. Qf4 {[%clk 00:00:38]} {[%emt 00:00:15]} Qc3 {[%clk 00:01:45]}
{[%emt 00:00:19]} 45. Nd1 {[%clk 00:00:34]} {[%emt 00:00:14]} Qa3 {[%clk
00:01:35]} {[%emt 00:00:20]} 46. Nf2 {[%clk 00:00:37]} {[%emt 00:00:07]} Nd7
{[%clk 00:01:32]} {[%emt 00:00:13]} 47. e5 {[%clk 00:00:33]} {[%emt 00:00:14]}
Qc3 {[%clk 00:01:42]} 48. Ne4 {[%clk 00:00:13]} {[%emt 00:00:30]} Qxe5 {[%clk
00:01:45]} {[%emt 00:00:06]} 49. Qxe5+ {[%clk 00:00:15]} {[%emt 00:00:08]} Nxe5
{[%clk 00:01:54]} 50. Nd6 {[%clk 00:00:18]} {[%emt 00:00:07]} Nd7 {[%clk
00:00:53]} {[%emt 00:01:11]} 51. Be2 {[%clk 00:00:24]} {[%emt 00:00:05]} Ne5
{[%clk 00:00:52]} {[%emt 00:00:11]} 52. Kf1 {[%clk 00:00:17]} {[%emt 00:00:17]}
Ra6 {[%clk 00:00:50]} {[%emt 00:00:11]} 53. Nb5 {[%clk 00:00:17]} {[%emt
00:00:11]} Bg4 {[%clk 00:00:46]} {[%emt 00:00:14]} 54. Nd4 {[%clk 00:00:18]}
{[%emt 00:00:09]} Ra3 {[%clk 00:00:43]} {[%emt 00:00:13]} 55. Kf2 {[%clk
00:00:18]} {[%emt 00:00:10]} Bxe2 {[%clk 00:00:42]} {[%emt 00:00:11]} 56. Nxe2
{[%clk 00:00:27]} {[%emt 00:00:01]} Ng4+ {[%clk 00:00:44]} {[%emt 00:00:07]} 57.
Ke1 {[%clk 00:00:29]} {[%emt 00:00:08]} Kf6 {[%clk 00:00:41]} {[%emt 00:00:14]}
58. Rb1 {[%clk 00:00:34]} {[%emt 00:00:05]} Ke5 {[%clk 00:00:46]} {[%emt
00:00:05]} 59. Rb7 {[%clk 00:00:36]} {[%emt 00:00:08]} f6 {[%clk 00:00:41]}
{[%emt 00:00:16]} 60. Re7+ {[%clk 00:00:35]} {[%emt 00:00:11]} Kd6 {[%clk
00:00:43]} {[%emt 00:00:08]} 61. Rg7 {[%clk 00:00:39]} {[%emt 00:00:06]} Ne5
{[%clk 00:00:45]} {[%emt 00:00:08]} 62. Rg8 {[%clk 00:00:36]} {[%emt 00:00:12]}
Kd5 {[%clk 00:00:42]} {[%emt 00:00:13]} 63. Kf2 {[%clk 00:00:23]} {[%emt
00:00:22]} Ke4 {[%clk 00:00:49]} {[%emt 00:00:03]} 64. Rd8 {[%clk 00:00:21]}
{[%emt 00:00:13]} Ng4+ {[%clk 00:00:58]} {[%emt 00:00:02]} 65. Kg2 {[%clk
00:00:19]} {[%emt 00:00:11]} Ne3+ {[%clk 00:01:06]} {[%emt 00:00:02]} 66. Kf2
{[%clk 00:00:26]} {[%emt 00:00:03]} Ng4+ {[%clk 00:00:29]} {[%emt 00:00:46]} 67.
Kg2 {[%clk 00:00:36]} Ke3 {[%clk 00:00:31]} {[%emt 00:00:10]} 68. Nf4 {[%clk
00:00:34]} {[%emt 00:00:11]} Ra2 {[%clk 00:00:29]} {[%emt 00:00:13]} 69. Re8+
{[%clk 00:00:38]} {[%emt 00:00:05]} Kd4 {[%clk 00:00:21]} {[%emt 00:00:17]} 70.
Re2 {[%clk 00:00:46]} {[%emt 00:00:03]} Rxc2 {[%clk 00:00:23]} {[%emt
00:00:08]} 71. Rxc2 {[%clk 00:00:45]} {[%emt 00:00:11]} Ne3+ {[%clk 00:00:32]}
72. Kf3 {[%clk 00:00:54]} {[%emt 00:00:02]} Nxc2 {[%clk 00:00:41]} 73. Nxg6
{[%clk 00:01:00]} {[%emt 00:00:04]} Kd3 {[%clk 00:00:38]} {[%emt 00:00:13]} 74.
Nf4+ {[%clk 00:01:04]} {[%emt 00:00:06]} Kd2 {[%clk 00:00:46]} {[%emt
00:00:02]} 75. Nd5 {[%clk 00:00:43]} {[%emt 00:00:31]} Nd4+ {[%clk 00:00:40]}
{[%emt 00:00:16]} 76. Ke4 {[%clk 00:00:49]} {[%emt 00:00:04]} Ne2 {[%clk
00:00:41]} {[%emt 00:00:09]} 77. Kf5 {[%clk 00:00:28]} {[%emt 00:00:31]} Nxg3+
{[%clk 00:00:20]} {[%emt 00:00:32]} 78. Kxf6 {[%clk 00:00:37]} c3 {[%clk
00:00:29]} 79. Nb4 {[%clk 00:00:28]} {[%emt 00:00:20]} c2 {[%clk 00:00:20]}
{[%emt 00:00:19]} 80. Na2 {[%clk 00:00:37]} Ne4+ {[%clk 00:00:17]} {[%emt
00:00:13]} 81. Kg6 {[%clk 00:00:45]} {[%emt 00:00:03]} Nc3 {[%clk 00:00:26]}
0-1

[Event "SELL Games"]
[Site "Tartu, Estonia"]
[Date "2023.05.19"]
[Round "4.3"]
[White "Sirp, Karl Aleksander"]
[Black "Obolonin, Filipp"]
[Result "1/2-1/2"]
[TimeControl "15min + 10sec per move each"]
[WhiteFideId "4504712"]
[BlackFideId "4505549"]
[WhiteElo "2033"]
[BlackElo "2017"]

1. d4 {[%clk 00:14:26]} {[%emt 00:00:53]} d5 {[%clk 00:15:20]} {[%emt
00:00:01]} 2. Bf4 {[%clk 00:14:34]} {[%emt 00:00:02]} Nf6 {[%clk 00:15:28]}
{[%emt 00:00:02]} 3. Nf3 {[%clk 00:14:42]} {[%emt 00:00:01]} c6 {[%clk
00:15:37]} {[%emt 00:00:01]} 4. e3 {[%clk 00:14:42]} {[%emt 00:00:11]} h6
{[%clk 00:15:45]} {[%emt 00:00:02]} 5. Bd3 {[%clk 00:14:40]} {[%emt 00:00:11]}
Bg4 {[%clk 00:15:54]} {[%emt 00:00:02]} 6. h3 {[%clk 00:14:41]} {[%emt
00:00:08]} Bxf3 {[%clk 00:16:02]} {[%emt 00:00:02]} 7. Qxf3 {[%clk 00:14:48]}
{[%emt 00:00:03]} e6 {[%clk 00:16:06]} {[%emt 00:00:07]} 8. Nd2 {[%clk
00:14:29]} {[%emt 00:00:28]} Be7 {[%clk 00:16:14]} {[%emt 00:00:02]} 9. O-O
{[%clk 00:14:22]} {[%emt 00:00:17]} Nbd7 {[%clk 00:16:23]} 10. e4 {[%clk
00:14:18]} {[%emt 00:00:15]} dxe4 {[%clk 00:16:32]} {[%emt 00:00:02]} 11. Nxe4
{[%clk 00:14:26]} {[%emt 00:00:01]} Nxe4 {[%clk 00:16:40]} {[%emt 00:00:02]} 12.
Bxe4 {[%clk 00:14:28]} {[%emt 00:00:08]} Nf6 {[%clk 00:16:49]} 13. Rad1 {[%clk
00:13:39]} {[%emt 00:00:59]} Nxe4 {[%clk 00:16:58]} {[%emt 00:00:02]} 14. Qxe4
{[%clk 00:13:47]} {[%emt 00:00:02]} Qd5 {[%clk 00:17:07]} 15. Qxd5 {[%clk
00:13:21]} {[%emt 00:00:35]} cxd5 {[%clk 00:17:16]} {[%emt 00:00:01]} 16. Rd3
{[%clk 00:13:03]} {[%emt 00:00:28]} Rc8 {[%clk 00:17:09]} {[%emt 00:00:17]} 17.
c3 {[%clk 00:12:36]} {[%emt 00:00:37]} b5 {[%clk 00:17:18]} {[%emt 00:00:01]}
18. Bg3 {[%clk 00:11:56]} {[%emt 00:00:50]} Kd7 {[%clk 00:17:21]} {[%emt
00:00:08]} 19. Re1 {[%clk 00:11:25]} {[%emt 00:00:40]} Rc6 {[%clk 00:17:25]}
{[%emt 00:00:06]} 20. Rde3 {[%clk 00:10:05]} {[%emt 00:01:30]} Rhc8 {[%clk
00:17:20]} {[%emt 00:00:15]} 21. a3 {[%clk 00:10:13]} {[%emt 00:00:03]} a5
{[%clk 00:17:29]} 22. f3 {[%clk 00:09:52]} {[%emt 00:00:30]} b4 {[%clk
00:17:34]} {[%emt 00:00:06]} 23. axb4 {[%clk 00:09:58]} {[%emt 00:00:04]} axb4
{[%clk 00:17:43]} {[%emt 00:00:01]} 24. Ra1 {[%clk 00:09:03]} {[%emt 00:01:05]}
bxc3 {[%clk 00:17:41]} {[%emt 00:00:13]} 25. Ra7+ {[%clk 00:08:55]} {[%emt
00:00:17]} Ke8 {[%clk 00:17:49]} {[%emt 00:00:02]} 26. bxc3 {[%clk 00:09:03]}
{[%emt 00:00:02]} Bf6 {[%clk 00:17:07]} {[%emt 00:00:53]} 27. Be1 {[%clk
00:08:44]} {[%emt 00:00:28]} R6c7 {[%clk 00:16:28]} {[%emt 00:00:49]} 28. Ra5
{[%clk 00:08:39]} {[%emt 00:00:15]} Kf8 {[%clk 00:16:29]} {[%emt 00:00:10]} 29.
f4 {[%clk 00:08:04]} {[%emt 00:00:44]} g6 {[%clk 00:15:54]} {[%emt 00:00:45]}
30. g4 {[%clk 00:07:43]} {[%emt 00:00:31]} Rxc3 {[%clk 00:13:15]} {[%emt
00:02:49]} 31. Bxc3 {[%clk 00:07:51]} {[%emt 00:00:02]} Rxc3 {[%clk 00:13:24]}
32. Rxc3 {[%clk 00:07:59]} {[%emt 00:00:01]} Bxd4+ {[%clk 00:13:33]} {[%emt
00:00:01]} 33. Kg2 {[%clk 00:07:57]} {[%emt 00:00:12]} Bxc3 {[%clk 00:13:42]}
{[%emt 00:00:01]} 34. Ra7 {[%clk 00:07:38]} {[%emt 00:00:29]} Kg7 {[%clk
00:13:33]} {[%emt 00:00:19]} 35. Kf3 {[%clk 00:07:14]} {[%emt 00:00:34]} Kf6
{[%clk 00:13:22]} {[%emt 00:00:21]} 36. Rc7 {[%clk 00:06:25]} {[%emt 00:00:59]}
Bd2 {[%clk 00:13:07]} {[%emt 00:00:25]} 37. Rc6 {[%clk 00:06:25]} {[%emt
00:00:10]} h5 {[%clk 00:12:38]} {[%emt 00:00:39]} 38. Ra6 {[%clk 00:06:21]}
{[%emt 00:00:15]} hxg4+ {[%clk 00:12:44]} {[%emt 00:00:04]} 39. hxg4 {[%clk
00:06:24]} {[%emt 00:00:06]} Bc1 {[%clk 00:12:41]} {[%emt 00:00:13]} 40. Rc6
{[%clk 00:06:20]} {[%emt 00:00:13]} Bd2 {[%clk 00:12:49]} {[%emt 00:00:02]} 41.
Ra6 {[%clk 00:06:00]} {[%emt 00:00:30]} g5 {[%clk 00:12:11]} {[%emt 00:00:49]}
42. f5 {[%clk 00:06:02]} {[%emt 00:00:08]} Bf4 {[%clk 00:12:15]} {[%emt
00:00:06]} 43. Ra7 {[%clk 00:05:26]} {[%emt 00:00:47]} Bc1 {[%clk 00:11:42]}
{[%emt 00:00:42]} 44. Rc7 {[%clk 00:04:55]} {[%emt 00:00:41]} Bf4 {[%clk
00:11:49]} {[%emt 00:00:03]} 45. Rd7 {[%clk 00:04:50]} {[%emt 00:00:15]} Bd2
{[%clk 00:11:50]} {[%emt 00:00:08]} 46. Ke2 {[%clk 00:04:42]} {[%emt 00:00:18]}
Bc1 {[%clk 00:11:57]} {[%emt 00:00:03]} 47. Kf3 {[%clk 00:04:34]} {[%emt
00:00:18]} Bf4 {[%clk 00:11:54]} {[%emt 00:00:12]} 48. Ra7 {[%clk 00:04:28]}
{[%emt 00:00:17]} Bd2 {[%clk 00:11:29]} {[%emt 00:00:35]} 49. Rb7 {[%clk
00:04:20]} {[%emt 00:00:18]} Bf4 {[%clk 00:11:13]} {[%emt 00:00:26]} 50. Rd7
{[%clk 00:04:18]} {[%emt 00:00:09]} Be5 {[%clk 00:11:14]} {[%emt 00:00:11]} 51.
Rb7 {[%clk 00:04:13]} {[%emt 00:00:15]} Bd4 {[%clk 00:11:18]} {[%emt 00:00:06]}
52. Rc7 {[%clk 00:04:15]} {[%emt 00:00:09]} Bb2 {[%clk 00:11:25]} {[%emt
00:00:03]} 53. Rb7 {[%clk 00:04:15]} {[%emt 00:00:10]} Ba1 {[%clk 00:11:32]}
{[%emt 00:00:02]} 54. Ra7 {[%clk 00:04:21]} {[%emt 00:00:04]} Bd4 {[%clk
00:11:41]} {[%emt 00:00:02]} 55. Rc7 {[%clk 00:04:28]} {[%emt 00:00:02]} Be5
{[%clk 00:10:49]} {[%emt 00:01:03]} 56. Ra7 {[%clk 00:04:26]} {[%emt 00:00:12]}
Bf4 {[%clk 00:09:16]} {[%emt 00:01:43]} 57. Rb7 {[%clk 00:04:14]} {[%emt
00:00:22]} exf5 {[%clk 00:07:14]} {[%emt 00:02:11]} 58. gxf5 {[%clk 00:04:16]}
{[%emt 00:00:09]} Kxf5 {[%clk 00:07:23]} 59. Rxf7+ {[%clk 00:04:24]} {[%emt
00:00:02]} Ke5 {[%clk 00:07:32]} {[%emt 00:00:01]} 60. Ra7 {[%clk 00:03:50]}
{[%emt 00:00:44]} Kd4 {[%clk 00:07:21]} {[%emt 00:00:21]} 61. Ra4+ {[%clk
00:03:23]} {[%emt 00:00:37]} Kc3 {[%clk 00:07:27]} {[%emt 00:00:04]} 62. Ra6
{[%clk 00:02:56]} {[%emt 00:00:37]} d4 {[%clk 00:07:22]} {[%emt 00:00:14]} 63.
Ke4 {[%clk 00:03:01]} {[%emt 00:00:05]} Be3 {[%clk 00:07:24]} {[%emt 00:00:08]}
64. Ra2 {[%clk 00:02:22]} {[%emt 00:00:49]} Bc1 {[%emt 00:01:36]} 1/2-1/2

[Event "SELL Games"]
[Site "Tartu, Estonia"]
[Date "2023.05.19"]
[Round "4.4"]
[White "Tvarijonas, Tomas"]
[Black "Piksis, Davids"]
[Result "1-0"]
[TimeControl "15min + 10sec per move each"]
[WhiteTitle "FM"]
[WhiteFideId "12805432"]
[BlackFideId "11609117"]
[WhiteElo "2181"]
[BlackElo "1770"]

1. e4 {[%clk 00:15:18]} {[%emt 00:00:02]} c5 {[%clk 00:15:20]} 2. Nf3 {[%clk
00:15:26]} {[%emt 00:00:02]} e6 {[%clk 00:15:29]} 3. d4 {[%clk 00:15:35]}
{[%emt 00:00:02]} cxd4 {[%clk 00:15:38]} 4. Nxd4 {[%clk 00:15:44]} {[%emt
00:00:01]} Nc6 {[%clk 00:15:47]} 5. Nc3 {[%clk 00:15:51]} {[%emt 00:00:03]} Bc5
{[%clk 00:15:48]} {[%emt 00:00:10]} 6. Nb3 {[%clk 00:15:15]} {[%emt 00:00:46]}
Bb6 {[%clk 00:15:56]} 7. Be2 {[%clk 00:15:16]} {[%emt 00:00:08]} Nge7 {[%clk
00:15:57]} {[%emt 00:00:09]} 8. O-O {[%clk 00:15:17]} {[%emt 00:00:09]} d5
{[%clk 00:15:56]} {[%emt 00:00:12]} 9. exd5 {[%clk 00:15:01]} {[%emt 00:00:26]}
Nxd5 {[%clk 00:16:04]} {[%emt 00:00:02]} 10. Nxd5 {[%clk 00:14:08]} {[%emt
00:01:03]} Qxd5 {[%clk 00:15:47]} {[%emt 00:00:27]} 11. Bf3 {[%clk 00:13:50]}
{[%emt 00:00:28]} Qxd1 {[%clk 00:15:39]} {[%emt 00:00:18]} 12. Rxd1 {[%clk
00:13:59]} {[%emt 00:00:01]} Ne5 {[%clk 00:15:10]} {[%emt 00:00:39]} 13. Be2
{[%clk 00:13:56]} {[%emt 00:00:13]} Bd7 {[%clk 00:14:41]} {[%emt 00:00:39]} 14.
a4 {[%clk 00:13:40]} {[%emt 00:00:26]} Rc8 {[%clk 00:13:25]} {[%emt 00:01:26]}
15. a5 {[%clk 00:13:25]} {[%emt 00:00:25]} Bd8 {[%clk 00:13:25]} {[%emt
00:00:10]} 16. c3 {[%clk 00:13:13]} {[%emt 00:00:22]} Bc6 {[%clk 00:09:35]}
{[%emt 00:04:00]} 17. a6 {[%clk 00:12:50]} {[%emt 00:00:33]} Bb6 {[%clk
00:08:14]} {[%emt 00:01:30]} 18. Na5 {[%clk 00:12:19]} {[%emt 00:00:41]} bxa6
{[%clk 00:04:33]} {[%emt 00:03:52]} 19. Bxa6 {[%clk 00:12:26]} {[%emt
00:00:04]} Rd8 {[%clk 00:04:01]} {[%emt 00:00:41]} 20. Rxd8+ {[%clk 00:12:33]}
{[%emt 00:00:03]} Kxd8 {[%clk 00:01:01]} {[%emt 00:03:10]} 21. Bf4 {[%clk
00:11:11]} {[%emt 00:01:32]} Bxa5 {[%clk 00:00:59]} {[%emt 00:00:12]} 22. Rxa5
{[%clk 00:11:13]} {[%emt 00:00:08]} Nd7 {[%clk 00:00:33]} {[%emt 00:00:35]} 23.
Be3 {[%clk 00:11:09]} {[%emt 00:00:14]} Ke7 {[%clk 00:00:17]} {[%emt 00:00:27]}
24. Be2 {[%clk 00:11:09]} {[%emt 00:00:10]} Rb8 {[%clk 00:00:14]} {[%emt
00:00:13]} 25. b4 {[%clk 00:11:11]} {[%emt 00:00:07]} Kf6 {[%emt 00:00:12]} 26.
Bxa7 {[%emt 00:00:53]} 1-0